Cogmind - Beta 16.1 @@@ ROGUE MODE // 2026.04.29 @ 19:21:32 Player: SunShine214 Result: Destroyed by B-75 Beast with Magnetic Acceleration Cannon Performance ------------- Evolutions (5) 2500 Regions Visited (5) 1000 Robots Destroyed (76) 380 Value Destroyed (2250) 2250 Prototype IDs (18) 360 Alien Tech Used (0) 0 Bonus (800) 800 TOTAL SCORE: 7290 Bonus ------- Registered with UFD 300 Met Optimus in HQ 500 Cogmind --------- Core Integrity 0/1000 Matter 76/300 Energy 94/100 System Corruption 0% Temperature Cool (12) Movement Core (1000) Ox19 Location -5/Factory Parts ------- > --- POWER (1) -------- (None) > --- PROPULSION (4) --- (None) > --- UTILITY (6) ------ (None) > --- WEAPON (6) ------- 1B-0RG's Assimilator Lance > --- INVENTORY (5) ---- (None) Peak State ------------ > --- POWER ------------ (None) > --- PROPULSION ------- (None) > --- UTILITY ---------- (None) > --- WEAPON ----------- 1B-0RG's Assimilator Lance > --- INVENTORY -------- (None) [Rating: 71] Favorites ----------- Power Ion Engine Engine Ion Engine Power Core Light Fission Core Propulsion Light Treads Treads Light Treads Hover Unit Gravmag System Utility Hacking Suite Device Sensor Array Storage Medium Storage Unit Processor Enhanced Optical Array Hackware Hacking Suite Protection Improved Light Armor Plating Weapon Improved Assault Rifle Energy Gun Medium Laser Energy Cannon Cooled Particle Cannon Ballistic Gun Improved Assault Rifle Ballistic Cannon Heavy Flak Cannon Special Weapon Mining Laser Piercing Weapon Makeshift Spear Special Melee Weapon 1B-0RG's Assimilator Build | -11 -10 -10 -9 -6 -5 ------- Run | Yrd Mat Sub Scr Fac Fac Slots Evolved 10 | . . . . 8 2 Power . | . . . . . . Propulsion 2 | . . . . 2 . Utility 4 | . . . . 3 1 Weapon 4 | . . . . 3 1 Parts Attached 67 | 8 5 5 4 40 5 Power 7 | 1 1 1 . 3 1 Engine 5 | 1 1 1 . 2 . Core 2 | . . . . 1 1 Reactor . | . . . . . . Propulsion 15 | 2 . 1 2 9 1 Treads 8 | 2 . 1 2 2 1 Leg . | . . . . . . Wheel . | . . . . . . Hover 7 | . . . . 7 . Flight . | . . . . . . Utility 18 | 3 1 1 2 11 . Device 4 | 2 . 1 . 1 . Storage 4 | 1 1 . 1 1 . Processor 2 | . . . 1 1 . Hackware 3 | . . . . 3 . Protection 5 | . . . . 5 . Artifact . | . . . . . . Weapon 27 | 2 3 2 . 17 3 Energy Gun 5 | 2 . . . 3 . Energy Cannon 3 | . . . . 2 1 Ballistic Gun 9 | . 2 1 . 6 . Ballistic Cannon 6 | . . . . 6 . Launcher . | . . . . . . Special Weapon 1 | . 1 . . . . Impact Weapon . | . . . . . . Slashing Weapon . | . . . . . . Piercing Weapon 2 | . . 1 . . 1 Special Melee Weapon 1 | . . . . . 1 Unidentified Prototypes 7 | . 1 . . 4 2 Parts Lost 30 | . . 2 . 20 8 Power 3 | . . . . 2 1 Propulsion 10 | . . 1 . 7 2 Utility 3 | . . . . 1 2 Weapon 14 | . . 1 . 10 3 Highest Loss Streak 6 | . . 1 . 5 6 To Critical Strikes . | . . . . . . Average Backups 7 | . 7 8 6 9 5 Power . | . . . . . . Propulsion 1 | . 2 2 . 1 . Utility 3 | . 3 4 3 2 2 Weapon . | . 2 1 1 . . Tool/Special . | . . . . . . Unused Backups 17 | . 3 3 1 3 7 Power . | . . . . . . Propulsion 2 | . . 2 . . . Utility 9 | . 1 1 1 2 4 Weapon 2 | . 2 . . . . Tool/Special 4 | . . . . 1 3 Average Slot Usage (%) 91 | . 100 100 100 84 32 Engine 10 | . 14 14 14 5 . Treads 20 | . 28 28 28 10 2 Hover 2 | . . . . 7 . Device 7 | . 14 14 7 1 2 Storage 10 | . 14 14 14 6 3 Processor 2 | . . . 6 2 . Hackware 7 | . . . . 18 7 Protection 1 | . . . . 2 2 Energy Gun 2 | . 11 . . 2 . Energy Cannon 2 | . . . . 5 . Ballistic Gun 12 | . 16 24 14 5 . Ballistic Cannon 3 | . . . . 7 9 Piercing Weapon 6 | . . 3 14 5 . Peak Build Rating 71 | 9 13 19 29 68 71 Average Rating 31 | 5 10 13 22 57 29 On Entrance 18 | . 7 12 19 27 43 Avg Prop Armor Cover (%) 7 | . . . . 7 . Naked Turns 94 | . . . . . 94 Heaviest Build 64 | 13 22 22 30 64 59 Greatest Support 88 | 40 40 40 40 88 28 Greatest Overweight (x) 19 | . . . 1 4 19 Average Overweight (x) . | . . . . . . Largest Inventory Capacity 15 | 8 10 10 15 15 15 Average Capacity 12 | 7 9 10 11 15 10 Most Carried 15 | 1 10 10 15 15 15 Average Carried 11 | . 7 9 10 14 10 Final Capacity 15 | 8 10 10 15 15 5 Final Carried 15 | 1 10 10 15 13 . Class Distribution -------------------- 60% | Mutant 13% | Hacker-Skirmisher 9% | Hacker-Tank 8% | Hacker-Mutant 4% | Scavenger-Tank Dominant Class ---------------- Mutant | -10/Materials Mutant | -10/Subcaves Mutant | -9/Scraptown Hacker-Skirmisher | -6/Factory Hacker-Mutant | -5/Factory Resources | -11 -10 -10 -9 -6 -5 ----------- Run | Yrd Mat Sub Scr Fac Fac Matter Collected 2267 | 280 252 220 30 1425 60 Remotely . | . . . . . . Salvage Created 2662 | 140 674 359 . 1429 60 Parts 152 | 7 45 21 . 77 2 Haulers Intercepted 2 | . 2 . . . . Recyclers Shooed 1 | . . . . 1 . Parts Field Recycled . | . . . . . . Retrieved Matter . | . . . . . . Parts Self-Destructed 17 | . . 17 . . . Prevented . | . . . . . . Parts Restored . | . . . . . . Kills | -11 -10 -10 -9 -6 -5 ------- Run | Yrd Mat Sub Scr Fac Fac Combat Hostiles Destroyed 50 | . 12 8 . 29 1 Melee 2 | . . . . 1 1 Guns 30 | . 12 8 . 10 . Cannons 16 | . . . . 16 . AOE 2 | . . . . 2 . Classes Destroyed 12 | 2 7 2 . 1 . Worker 7 | . 1 . . 6 . Tunneler 4 | 3 1 . . . . Hauler 2 | . 2 . . . . Recycler 5 | 1 2 . . 2 . Mechanic 1 | . 1 . . . . Operator 2 | . 2 . . . . Watcher 5 | . 3 . . 2 . Swarmer 15 | . 9 . . 6 . Grunt 16 | . 3 2 . 10 1 Sentry 6 | . . 1 . 5 . Programmer 8 | . . . . 8 . Subdweller 5 | . . 5 . . . Best Kill Streak 5 | 2 5 2 . 4 1 Combat Bots Only 4 | . 4 2 . 4 1 Max Kills in Single Turn 2 | 1 2 1 . 2 1 Gunslinging 1 | . 1 . . . . Exploded 2 | . . . . 2 . Melee 1 | . . . . 1 1 Uniques/NPCs Destroyed . | . . . . . . Combat | -11 -10 -10 -9 -6 -5 -------- Run | Yrd Mat Sub Scr Fac Fac Hostile Shots Fired 574 | . 47 33 20 340 134 Missed 177 | . 14 6 4 119 34 Hits 397 | . 33 27 16 221 100 Projectile 397 | . 33 27 16 221 100 AOE 1 | . . . . 1 . Critical Strikes 10 | . . 1 . 8 1 Damage Taken 6351 | . 278 568 150 3625 1730 Core 1595 | . 42 25 12 510 1006 Absorbed by Shields . | . . . . . . Ignored by Resistances 70 | . . . . 70 . Core Remaining (%) 69 | 100 . . 68 40 . Volleys Fired 180 | 8 48 26 . 98 . Largest 4 | 2 2 2 . 4 . Hottest 224 | 100 150 100 . 224 . Shots Fired 416 | 16 96 51 . 253 . Gun 273 | 16 95 50 . 112 . Cannon 141 | . . . . 141 . Launcher . | . . . . . . Special 2 | . 1 1 . . . Kinetic 304 | . 64 50 . 190 . Thermal 93 | 16 32 1 . 44 . Explosive . | . . . . . . Electromagnetic 19 | . . . . 19 . Robot Hit Streak 21 | 4 10 21 . 7 . Robot Miss Streak 16 | 1 6 1 . 16 . Penetration Max 1 | . . . . 1 . Secondary Targets 6 | . 4 1 . 1 . Max Gunslinging Chain 1 | . 1 1 . 1 . Shots Hit Robots 290 | 11 56 41 . 177 5 Core Hits 180 | 5 30 16 . 127 2 Critical Kills 1 | . . . . 1 . Critical Parts Destroyed 3 | . 1 . . 2 . Critical Strikes 8 | 2 2 . . 4 . Burn 3 | 2 1 . . . . Destroy 4 | . 1 . . 3 . Impale 1 | . . . . 1 . Melee Attacks 26 | . . 3 2 15 6 Impact . | . . . . . . Slashing . | . . . . . . Piercing 26 | . . 3 2 15 6 Sneak Attacks 12 | . . . . 12 . Combat Hostiles 1 | . . . . 1 . Follow-up Attacks . | . . . . . . Damage Inflicted 6975 | 140 827 601 . 5241 166 Guns 3201 | 134 825 601 . 1641 . Cannons 2569 | . . . . 2569 . Explosions 358 | . . . . 358 . Melee 801 | . . . . 642 159 Ramming 46 | 6 2 . . 31 7 Kinetic 4512 | . 627 601 . 3284 . Thermal 1051 | 134 198 . . 719 . Explosive 358 | . . . . 358 . Electromagnetic 207 | . . . . 207 . Impact . | . . . . . . Slashing . | . . . . . . Piercing 801 | . . . . 642 159 Highest Corruption 16 | . . . 1 16 . Average Corruption 9 | . . . 1 9 . Corruption Purged . | . . . . . . Corruption Blocked . | . . . . . . Effects 85 | . . . . 85 . Message Errors 19 | . . . . 19 . Matter Fused 19 | . . . . 19 . Heat Flow Errors 8 | . . . . 8 . Energy Discharges 10 | . . . . 10 . Parts Rejected 3 | . . . . 3 . Data Loss (minor) 7 | . . . . 7 . Data Loss (major) 4 | . . . . 4 . Misfires 1 | . . . . 1 . Misdirections 3 | . . . . 3 . Weapon Failures 11 | . . . . 11 . Overload Shots . | . . . . . . Overflow Damage 227 | . . . . 227 . Projectiles 40 | . . . . 40 . Explosions 4 | . . . . 4 . Melee 183 | . . . . 183 . Knockbacks 33 | . . . . 33 . Impact . | . . . . . . Kinetic 32 | . . . . 32 . Secondary 1 | . . . . 1 . Self-Inflicted Damage 128 | . . . . 128 . Shots 1 | . . . . 1 . Rammed 11 | 1 3 . . 2 5 Targets Rammed 12 | 1 3 . . 3 5 Kicked . | . . . . . . Crushed 1 | . . . . 1 . Highest Temperature 438 | 156 156 . . 438 347 Average Temperature 109 | 57 49 . . 125 187 Received Heat Transfer 1380 | . 36 78 . 747 519 Effects 5 | . . . . 5 . Shutdowns 1 | . . . . 1 . Interference 1 | . . . . 1 . Matter Decay 1 | . . . . 1 . Short Circuit 2 | . . . . 2 . Siege Activations . | . . . . . . Martial Activations . | . . . . . . Shielding Activations . | . . . . . . Robots Disrupted . | . . . . . . Combat Hostiles . | . . . . . . Robots Corrupted . | . . . . . . Combat Hostiles . | . . . . . . Parts Fried . | . . . . . . Impact Corruptions 1 | . . . . 1 . Robots Melted . | . . . . . . Combat Hostiles . | . . . . . . Parts Melted 5 | 2 3 . . . . Heat Transferred 2286 | 555 666 . . 1065 . Parts Sabotaged . | . . . . . . Parts Stolen . | . . . . . . Parts Stripped . | . . . . . . Power Chain Reactions . | . . . . . . Alert | -11 -10 -10 -9 -6 -5 ------- Run | Yrd Mat Sub Scr Fac Fac Maximum Alert Level 2 | . . . . 2 . Low Security (%) 79 | 100 100 . . 68 100 Level 1 18 | . . . . 28 . Level 2 1 | . . . . 2 . Level 3 . | . . . . . . Level 4 . | . . . . . . Level 5 . | . . . . . . High Security . | . . . . . . Max Security . | . . . . . . Peak Influence 407 | 10 96 . . 407 185 Initial 185 | . . . . . 185 Average 104 | 2 43 . . 133 90 Influence Increases 1658 | 20 402 70 . 1046 120 Destroy 0b10 Robot/C 900 | . 240 60 . 580 20 Destroy 0b10 Robot/NC 130 | 20 60 . . 50 . Destroy Leader 264 | . 60 10 . 184 10 Successful Hack 15 | . 10 . . 5 . Disable Machine 60 | . 15 . . 45 . Destroy Structure 49 | . 2 . . 47 . Lose Combat Pursuer 240 | . 15 . . 135 90 Influence Decreases 1568 | 20 341 131 . 667 409 Entered New Map 224 | . . 30 . . 194 Time Decay 1074 | 20 341 101 . 477 135 Lost Part 270 | . . . . 190 80 Squads Dispatched 20 | . 4 . . 13 3 Investigation 7 | . 1 . . 4 2 Extermination 7 | . . . . 6 1 Reinforcement 6 | . 3 . . 3 . Assault . | . . . . . . Garrison . | . . . . . . Intercept . | . . . . . . Searches Triggered . | . . . . . . Construction Impeded . | . . . . . . Haulers Reinforced . | . . . . . . Active Scanning Responses . | . . . . . . Cargo Convoy Interrupts . | . . . . . . Stealth | -11 -10 -10 -9 -6 -5 --------- Run | Yrd Mat Sub Scr Fac Fac Distress Signals 3 | . 1 . . 2 . Communications Jammed . | . . . . . . Distress Signals . | . . . . . . Times Spotted 96 | . 26 9 2 46 13 Peak Tracking Total 7 | . 3 2 2 5 7 Tactical Retreats 9 | . 1 . . 6 2 Traps | -11 -10 -10 -9 -6 -5 ------- Run | Yrd Mat Sub Scr Fac Fac Traps Triggered 7 | . . 2 . 2 3 Indirectly . | . . . . . . Trap Hack Attempts . | . . . . . . Triggered . | . . . . . . Disarmed 1 | . . . . 1 . Reprogrammed . | . . . . . . Reused . | . . . . . . Traps Extracted . | . . . . . . Installed . | . . . . . . Triggered . | . . . . . . Machines | -11 -10 -10 -9 -6 -5 ---------- Run | Yrd Mat Sub Scr Fac Fac Machines Disabled 4 | . 1 . . 3 . Max in Single Turn 1 | . 1 . . 1 . Machines Repaired . | . . . . . . Machines Dismantled . | . . . . . . Machines Sabotaged . | . . . . . . Overloaded Fab Kills . | . . . . . . Hacking | -11 -10 -10 -9 -6 -5 --------- Run | Yrd Mat Sub Scr Fac Fac Machines Accessed 15 | . 5 . 3 6 1 Terminals 9 | . 5 . . 3 1 Fabricators . | . . . . . . Repair Stations . | . . . . . . Recycling Units 2 | . . . . 2 . Scanalyzers . | . . . . . . Garrison Access 1 | . . . . 1 . Total Hacks 41 | . 13 . 15 10 3 Successful 23 | . 4 . 15 4 . Failed 18 | . 9 . . 6 3 Catastrophic 1 | . . . . . 1 Database Lockouts . | . . . . . . Manual 10 | . 6 . . 4 . Terminals 21 | . 13 . . 5 3 Fabricators . | . . . . . . Repair Stations . | . . . . . . Recycling Units 3 | . . . . 3 . Scanalyzers . | . . . . . . Garrison Access 2 | . . . . 2 . Terminal Hacks 22 | . 4 . 15 3 . Record 8 | . . . 8 . . Robot Analysis 6 | . . . 6 . . Prototype ID Bank 1 | . 1 . . . . Recycling Unit Index 1 | . . . . 1 . Locate Traps 1 | . . . . 1 . Disarm Traps 1 | . . . . 1 . Hauler Manifests 1 | . 1 . . . . Registered Components 1 | . 1 . . . . Zone Layout 1 | . 1 . . . . Proto ID Catalog 1 | . . . 1 . . Fabricator Hacks . | . . . . . . Repair Station Hacks . | . . . . . . Recycling Unit Hacks . | . . . . . . Scanalyzer . | . . . . . . Garrison Access Hacks . | . . . . . . Unauthorized Hacks 1 | . . . . 1 . Terminals . | . . . . . . Fabricators . | . . . . . . Repair Stations . | . . . . . . Recycling Units 1 | . . . . 1 . Fedlink 1 | . . . . 1 . Scanalyzers . | . . . . . . Garrison Access . | . . . . . . Data Cores Recovered . | . . . . . . Used . | . . . . . . Hacking Detections 10 | . 5 . . 4 1 Full Trace Events 4 | . 1 . . 2 1 Feedback Events . | . . . . . . Feedback Blocked . | . . . . . . Robot Schematics Acquired . | . . . . . . Robots Built . | . . . . . . Authchips . | . . . . . . Time . | . . . . . . Total Robot Build Rating . | . . . . . . Part Schematics Acquired . | . . . . . . Parts Built . | . . . . . . Authchips . | . . . . . . Time . | . . . . . . Total Part Build Rating . | . . . . . . Part Studies Acquired . | . . . . . . Parts Repaired . | . . . . . . Time . | . . . . . . Parts Recycled . | . . . . . . Recycled Matter . | . . . . . . Retrieved Matter . | . . . . . . Retrieved Components . | . . . . . . Parts Scanalyzed . | . . . . . . Part Schematics Acquired . | . . . . . . Parts Damaged . | . . . . . . Bothacking | -11 -10 -10 -9 -6 -5 ------------ Run | Yrd Mat Sub Scr Fac Fac Used RIF Installer . | . . . . . . Robots Hacked . | . . . . . . Non-combat . | . . . . . . Combat . | . . . . . . Robot Hacks Applied . | . . . . . . Relay Couplers Released 3 | . . . . 3 . Programmers 3 | . . . . 3 . Fabnet Peak Effective % . | . . . . . . Robots Rewired . | . . . . . . Allies Hacked . | . . . . . . Hacks Repelled . | . . . . . . Allies | -11 -10 -10 -9 -6 -5 -------- Run | Yrd Mat Sub Scr Fac Fac Total Allies . | . . . . . . Largest Group . | . . . . . . Highest-Rated Group . | . . . . . . Highest-Rated Ally . | . . . . . . Initial UFD Resources 37 | . . . . 24 37 Total Orders . | . . . . . . Ally Attacks . | . . . . . . Total Damage . | . . . . . . Kills . | . . . . . . Allies Corrupted . | . . . . . . Allies Melted 1 | . . . 1 . . Intel | -11 -10 -10 -9 -6 -5 ------- Run | Yrd Mat Sub Scr Fac Fac Active Infowar (turns) 5683 | 48 1012 1270 1922 1431 . Optics 2046 | . . . 920 1126 . Sensors 2272 | . . 1270 1002 . . Terrain 30 | 30 . . . . . Seismic 1030 | 18 1012 . . . . Cloaking 305 | . . . . 305 . Robot Analysis Total 6 | . . . 6 . . Derelict Logs Recovered . | . . . . . . Drone Launches . | . . . . . . Drone Recoveries . | . . . . . . Exploration | -11 -10 -10 -9 -6 -5 ------------- Run | Yrd Mat Sub Scr Fac Fac Turns Passed 7300 | 107 1012 1270 1922 2639 350 Spaces Moved 4055 | 45 501 726 1165 1320 298 Core 226 | 2 . . . . 224 Treads 3077 | 43 501 726 1165 568 74 Legs . | . . . . . . Wheels . | . . . . . . Hover 752 | . . . . 752 . Flight . | . . . . . . Fastest Speed 48 | 50 160 160 155 48 50 Average Speed 154 | 155 160 160 163 152 106 Slowest Speed 1000 | 160 160 160 250 340 1000 Overloaded Moves . | . . . . . . Propulsion Burnouts . | . . . . . . Robots Hopped . | . . . . . . Potential Cave-ins . | . . . . . . Cave-ins Triggered . | . . . . . . Exploration Rate (%) 41 | 3 83 48 84 24 8 Regions Visited 5 Branch Regions 2 Pre-discovered Areas . | . . . . . . Known Exits Taken . | . . . . . . Unknown Exits Taken 5 | 1 1 1 1 1 . Scrap Searched 8 | . . 5 3 . . Spaces Dug . | . . . . . . Terrain Destroyed 60 | . . . . 60 . Melee . | . . . . . . Projectile 14 | . . . . 14 . AOE 46 | . . . . 46 . Terrain Rammed . | . . . . . . Walls Destroyed . | . . . . . . Machines Disabled . | . . . . . . Actions | -11 -10 -10 -9 -6 -5 --------- Run | Yrd Mat Sub Scr Fac Fac Total 4674 | 62 612 777 1182 1716 325 Wait 246 | . 38 8 . 196 4 Move 4051 | 45 500 725 1164 1319 298 Hop . | . . . . . . Pick Up 33 | 1 12 2 6 9 3 Fast Attach 33 | 7 . . . 23 3 Attach 12 | . . 2 . 8 2 Detach 2 | . . . . 2 . Swap 44 | 1 6 6 5 26 . Drop 36 | . 5 5 5 17 4 Fire 180 | 8 48 26 . 98 . Melee 26 | . . 3 2 15 6 Ram 3 | . . . . 2 1 Kick . | . . . . . . Crush 8 | . 3 . . 1 4 Escape Stasis . | . . . . . . Rewire . | . . . . . . Trap . | . . . . . . Miscellaneous . | . . . . . . Route ------- -11/Scrapyard -10/Materials (discovered 5 exits: [*Mat x3] / [*Min] / [*Sub]) -10/Subcaves (discovered 2 exits: [*Mat] / *Scr) -9/Scraptown -6/Factory -5/Factory History --------- Turn | Location | Event 17 | -11/Scrapyard | Discovered new exit (range 16) 108 | -11/Scrapyard | Entered Materials 336 | -10/Materials | Build established: Mutant 479 | -10/Materials | Discovered new exit (range 11) 709 | -10/Materials | Discovered new exit (range 9) 952 | -10/Materials | Discovered new exit (range 4) 1085 | -10/Materials | Discovered new exit (range 6) 1102 | -10/Materials | Discovered new exit (range 4) 1120 | -10/Materials | Entered Subcaves 1121 | -10/Subcaves | Approached by a straggling Scientist 1125 | -10/Subcaves | Shifting Twisted Machinery released Sub. Machine Gun 1125 | -10/Subcaves | Shifting Twisted Machinery released Battle Cannon 1170 | -10/Subcaves | A swath of the cavern ceiling suddenly collapsed 1503 | -10/Subcaves | Scientist uncovered a shortcut to Scraptown 1627 | -10/Subcaves | Discovered new exit (range 9) 1944 | -10/Subcaves | Disturbed a concealed Subdweller 2056 | -10/Subcaves | Visited 4L-MR0's lab 2066 | -10/Subcaves | Found Prototype Special Melee Weapon 2390 | -10/Subcaves | Entered Scraptown 2546 | -9/Scraptown | Heard Great Nut preacher, LISTEN AND RECITE! 2603 | -9/Scraptown | Visited UFD Registry 2603 | -9/Scraptown | Registered with UFD as "Dualboard" 2629 | -9/Scraptown | Visited SPCMW 2638 | -9/Scraptown | Visited Junk Repository 2698 | -9/Scraptown | Visited TADAMA 3281 | -9/Scraptown | Visited Scrapoid Research Area 3313 | -9/Scraptown | Visited Science Guys 3370 | -9/Scraptown | Visited Junk Repository 3434 | -9/Scraptown | Visited Curators Association 3482 | -9/Scraptown | Visited Research Penetration Think Tank 3524 | -9/Scraptown | Visited Scrap Suit Storage 3566 | -9/Scraptown | Visited Analyses Database 3665 | -9/Scraptown | Visited Derelict Rescue Squad 4130 | -9/Scraptown | Met Optimus 4130 | -9/Scraptown | Accepted into 0bPrime 4228 | -9/Scraptown | Found Scrap Suit 4238 | -9/Scraptown | Civil war broke out across Scraptown 4296 | -9/Scraptown | Discovered new exit (range 3) 4312 | -9/Scraptown | Entered Factory 4312 | -6/Factory | Evolved 8 slots: Propulsion x2, Utility x3, Weapon x3 4751 | -6/Factory | Build established: Hacker-Skirmisher 5475 | -6/Factory | Lost 4 parts (1n3w) 5955 | -6/Factory | Loaded intel: 8 recycling unit locations 5991 | -6/Factory | System corruption reached 10% 6373 | -6/Factory | Lost 5 parts (1n1u3w) 6534 | -6/Factory | Discovered new exit (range 9) 6606 | -6/Factory | Build established: Hacker-Tank 6708 | -6/Factory | Core integrity fell below 50% 6951 | -6/Factory | Entered another Factory area 6951 | -5/Factory | Evolved 2 slots: Utility x1, Weapon x1 7154 | -5/Factory | Build established: Hacker-Mutant 7188 | -5/Factory | Core integrity fell below 50% 7189 | -5/Factory | Lost 6 parts (1p1n1u3w) 7224 | -5/Factory | Spotted B-75 Beast 7290 | -5/Factory | Core integrity fell below 20% 7298 | -5/Factory | Identified 1B-0RG's Assimilator 7301 | -5/Factory | Destroyed by B-75 Beast with Magnetic Acceleration Cannon Last Messages --------------- 07244_ ALERT: Alarm triggered, dispatching investigation squad. 07252_ Acquired Prototype Energy Cannon. 07252_ Identified Cld. Plasma Cannon. 07252_ Faulty integration triggers heat surge (+387). 07254_ Dropped Faulty Cld. Plasma Cannon. 07269_ Acquired Lance. 07277_ Slug penetrates G-50 Soldier. 07291_ Slug penetrates Wall. 07294_ G-50 Soldier destroyed. 07295_ Slug penetrates Wall. 07297_ Acquired 60 matter. 07297_ Slug penetrates Wall. 07297_ Dropped Prototype Special Melee Weapon. 07298_ Acquired Prototype Special Melee Weapon. 07298_ Identified 1B-0RG's Assimilator. 07298_ Slug penetrates Wall. 07299_ Wall collapses. 07301_ Penetrated by Slug. Map ----- +----------------------------------------------------+ | ???##########??????????????????? ? ?# #??????? | | ???# """ #????????????????? """ ?# #??????? | | ???# "R" #???????????????? ""R" ?# #??????? | | ???# " " #???????????????# "" " ?+ #??????? | | ???# #????????????????? # #??????? | | ???# #??????????????????? # #??????? | | ???# """ #????????????????????? # #??????? | | ???# """ #?##########???????????? # #??????? | | ???# """ #?#] #????????######" ######## | | ???# ] #?# """" #????????# | | ???######+###?# """" ########## ### ### | | ??????# #?# """" # #?# """ #?? | | ??????# ### """" + #?# T" #?? | | ??????# " + """" ; #"" """ #?? | | ??????# ### """" ;# #"" ? | | ??????# #?# """" #; #"" | | ??????## ##?# #; ### T####G | | ???????# #??#####+####; #?####??#"" | | ???????# #??????# #??#; #???????#"" !! ? | | ???????# #??????# #?##; ###?????#"" !! ? | | ???????# ######## ### #???????# !! ? | | ???????# #???????# ?? | | ???????# BBT #???????# ??? | | ???????# BBh #???????####### ????? | | ???????################ h[ #?????????????? ?????? | | ??????????????????######;@;##??????????????#?????? | | ??????????????????# % #?????????????????????? | | ??????????????????# !! %#?????????????????????? | | ??????????????????# !! #?????????????????????? | | ??????????????????# ! w ????????????????????? | | ??????????????????# ###???????????????????? | | ??????????????????# !#?????????????????????? | | ??????????????????# #?????????????????????? | | ??????????????????# #?????????????????????? | | ??????????????????# #?????????????????????? | | ??????????????????##########?????????????????????? | | ?????????????????????????????????????????????????? | | ?????????????????????????????????????????????????? | | ?????????????????????????????????????????????????? | | ?????????????????????????????????????????????????? | | ?????????????????????????????????????????????????? | | ?????????????????????????????????????????????????? | | ?????????????????????????????????????????????????? | | ?????????????????????????????????????????????????? | | ?????????????????????????????????????????????????? | | ?????????????????????????????????????????????????? | | ?????????????????????????????????????????????????? | | ?????????????????????????????????????????????????? | | ?????????????????????????????????????????????????? | | ?????????????????????????????????????????????????? | +----------------------------------------------------+ Best States ------------- Heat Dissipation 40 Energy Generation 18 Energy Capacity 300 Matter Stores 300 Matter Capacity 300 Sight Range 22 Robot Scan Range 14 Terrain Scan Range 16 Terrain Scan Density 10 Cloak Strength 2 Armor Coverage 225 Resistance: EM 20 Evasion (%) 50 Recoil Reduction 4 Offensive Hacking 30 Item Schematics ----------------- None Robot Schematics ------------------ None Fabricated ------------ Nothing Repaired ---------- Nothing Studied --------- None Alien Tech Used ----------------- None Achievements -------------- None Challenges ------------ None Game ------ Seed FluxMicrodissipatorRipper Manual? 0 Play Time 00:40:34 Cumulative 159.4 hours Start 2026.04.29 @ 18:43:10 End 2026.04.29 @ 19:21:32 Sessions 1 Manual Loads 0 Difficulty Rogue Special Mode None Game No. 244 Rogue 244 Adventurer 0 Explorer 0 Win Type - Total 1 Types 1/0/0/0/0/0/0/0/0/0 Lore% 54 Gallery% 56 Achievement% 43 Wizard Run 0 Options --------- Layout 1 ASCII 0 Keyboard 1 Movement Arrows Keybinds 0 Fullscreen 1 Font 24/Smallcaps Map View 50x35 Zoom Use 0% Tactical HUD 1 Map Filters NONE Filters NONE Steam 1 RUN: e11be95c-3284-4403-aad5-86c1df3478b1